[Event "Late-Titled-Tuesday-Blitz-June-25-2024"]
[Site "Chess.com"]
[Date "2024.06.25"]
[Round "4"]
[White "h4parah5"]
[Black "CM_rui"]
[Result "1-0"]
[WhiteElo "2973"]
[BlackElo "2563"]
[TimeControl "180+1"]
[EndTime "14:38:00 PDT"]
[Termination "h4parah5 won by resignation"]

1. Nf3 {[%clk 0:03:00.9]} 1... Nf6 {[%clk 0:03:00]} 2. b3 {[%clk 0:03:00.8]}
2... d6 {[%clk 0:02:58.8]} 3. d4 {[%clk 0:03:00.1]} 3... b6 {[%clk 0:02:57.7]}
4. g3 {[%clk 0:02:59.5]} 4... Bb7 {[%clk 0:02:57.9]} 5. Bg2 {[%clk 0:02:59.5]}
5... g6 {[%clk 0:02:58.5]} 6. O-O {[%clk 0:02:59.3]} 6... Bg7 {[%clk 0:02:59.1]}
7. Bb2 {[%clk 0:02:59.5]} 7... O-O {[%clk 0:02:59.4]} 8. c4 {[%clk 0:02:59]}
8... Nbd7 {[%clk 0:02:59.3]} 9. Nc3 {[%clk 0:02:58.3]} 9... Re8 {[%clk
0:02:59.7]} 10. Re1 {[%clk 0:02:50.3]} 10... e5 {[%clk 0:02:58.7]} 11. Nxe5
{[%clk 0:02:43.4]} 11... Bxg2 {[%clk 0:02:48.8]} 12. Nxd7 {[%clk 0:02:43.2]}
12... Bh3 {[%clk 0:02:42.1]} 13. Nxf6+ {[%clk 0:02:42.4]} 13... Qxf6 {[%clk
0:02:42.7]} 14. Nd5 {[%clk 0:02:41.6]} 14... Qd8 {[%clk 0:02:27.3]} 15. e4
{[%clk 0:02:33.9]} 15... Qd7 {[%clk 0:02:20.4]} 16. Nf4 {[%clk 0:02:30]} 16...
Re7 {[%clk 0:02:08.7]} 17. f3 {[%clk 0:02:24.4]} 17... g5 {[%clk 0:02:04.4]} 18.
Nh5 {[%clk 0:02:09.2]} 18... Rae8 {[%clk 0:01:51.2]} 19. Nxg7 {[%clk 0:02:04.9]}
19... Kxg7 {[%clk 0:01:52.1]} 20. d5+ {[%clk 0:02:04.8]} 20... f6 {[%clk
0:01:42.1]} 21. Qd2 {[%clk 0:01:56]} 21... Kg6 {[%clk 0:01:36.4]} 22. Qd3 {[%clk
0:01:49]} 22... Kg7 {[%clk 0:01:21.2]} 23. Kf2 {[%clk 0:01:29]} 23... h5 {[%clk
0:01:18.4]} 24. f4 {[%clk 0:01:25]} 24... Qg4 {[%clk 0:01:11.9]} 25. Qc3 {[%clk
0:01:03.7]} 25... gxf4 {[%clk 0:00:54.6]} 26. Qxf6+ {[%clk 0:00:23]} 26... Kh7
{[%clk 0:00:54.9]} 27. Qxf4 {[%clk 0:00:22.1]} 27... Qxf4+ {[%clk 0:00:35.9]}
28. gxf4 {[%clk 0:00:23]} 28... Rxe4 {[%clk 0:00:36.5]} 29. Rxe4 {[%clk
0:00:22.7]} 29... Rxe4 {[%clk 0:00:37.4]} 30. Kg3 {[%clk 0:00:21.7]} 30... Bg4
{[%clk 0:00:31.4]} 31. Bf6 {[%clk 0:00:21.6]} 31... Kg6 {[%clk 0:00:28.7]} 32.
Bd8 {[%clk 0:00:21]} 32... Re3+ {[%clk 0:00:25.8]} 33. Kg2 {[%clk 0:00:21.2]}
33... Re2+ {[%clk 0:00:25.4]} 34. Kg1 {[%clk 0:00:21.4]} 34... Kf5 {[%clk
0:00:15.3]} 35. Bxc7 {[%clk 0:00:21.3]} 35... Kxf4 {[%clk 0:00:15]} 36. Bxd6+
{[%clk 0:00:21.2]} 36... Kf3 {[%clk 0:00:14.5]} 37. Rf1+ {[%clk 0:00:20.3]}
37... Ke3 {[%clk 0:00:13.1]} 38. Bf4+ {[%clk 0:00:20.5]} 38... Ke4 {[%clk
0:00:12.8]} 39. Bg3 {[%clk 0:00:20.8]} 39... Bh3 {[%clk 0:00:11.9]} 40. Rd1
{[%clk 0:00:20.5]} 40... Rxa2 {[%clk 0:00:08.9]} 41. d6 {[%clk 0:00:20.4]} 41...
Bd7 {[%clk 0:00:09.4]} 42. Re1+ {[%clk 0:00:20]} 42... Kf3 {[%clk 0:00:09.2]}
43. Re7 {[%clk 0:00:20.9]} 43... Rg2+ {[%clk 0:00:06.3]} 44. Kf1 {[%clk
0:00:20.3]} 44... Bh3 {[%clk 0:00:04.5]} 45. Ke1 {[%clk 0:00:20.6]} 45... Rg1+
{[%clk 0:00:02.5]} 46. Kd2 {[%clk 0:00:20.5]} 46... Rg2+ {[%clk 0:00:03.4]} 47.
Kc3 {[%clk 0:00:20]} 47... Rg1 {[%clk 0:00:03.5]} 48. Rf7+ {[%clk 0:00:18.7]}
48... Ke4 {[%clk 0:00:03.4]} 49. Re7+ {[%clk 0:00:17.6]} 49... Kf3 {[%clk
0:00:03.6]} 50. Re5 {[%clk 0:00:17.7]} 50... Rd1 {[%clk 0:00:03.8]} 51. Rxh5
{[%clk 0:00:17.7]} 51... Bg4 {[%clk 0:00:03.7]} 52. Rh7 {[%clk 0:00:17.6]} 52...
Rc1+ {[%clk 0:00:04.1]} 53. Kb2 {[%clk 0:00:17.4]} 53... Rd1 {[%clk 0:00:04.2]}
54. Rf7+ {[%clk 0:00:17.2]} 54... Ke4 {[%clk 0:00:04.1]} 55. Rf4+ {[%clk
0:00:17.4]} 55... Ke3 {[%clk 0:00:04.6]} 56. Rxg4 {[%clk 0:00:18.3]} 56... Rd2+
{[%clk 0:00:04.7]} 57. Ka3 {[%clk 0:00:18.2]} 57... a5 {[%clk 0:00:05.6]} 58.
Bf4+ {[%clk 0:00:18.2]} 58... Kd3 {[%clk 0:00:05.2]} 59. Bxd2 {[%clk 0:00:19.1]}
59... b5 {[%clk 0:00:05.8]} 60. cxb5 {[%clk 0:00:19.1]} 60... Kc2 {[%clk
0:00:06.2]} 61. d7 {[%clk 0:00:19.4]} 61... a4 {[%clk 0:00:07.1]} 62. bxa4
{[%clk 0:00:19.1]} 62... Kb1 {[%clk 0:00:08]} 63. b6 {[%clk 0:00:19.7]} 63...
Kc2 {[%clk 0:00:07.7]} 64. a5 {[%clk 0:00:20.2]} 64... Kb1 {[%clk 0:00:08.3]}
65. a6 {[%clk 0:00:20.7]} 65... Kc2 {[%clk 0:00:09.2]} 66. b7 {[%clk 0:00:21.1]}
66... Kd1 {[%clk 0:00:10.1]} 67. a7 {[%clk 0:00:21.3]} 67... Kc2 {[%clk
0:00:11]} 68. Ba5 {[%clk 0:00:21.4]} 68... Kd1 {[%clk 0:00:11.9]} 1-0

[Event "Late-Titled-Tuesday-Blitz-June-25-2024"]
[Site "Chess.com"]
[Date "2024.06.25"]
[Round "4"]
[White "KnightmareJoker"]
[Black "Zq1"]
[Result "0-1"]
[WhiteElo "2283"]
[BlackElo "2491"]
[TimeControl "180+1"]
[EndTime "14:38:07 PDT"]
[Termination "Zq1 won by resignation"]

1. d4 {[%clk 0:03:00.9]} 1... Nf6 {[%clk 0:02:59.1]} 2. c4 {[%clk 0:03:00.5]}
2... a6 {[%clk 0:02:58.3]} 3. Nc3 {[%clk 0:03:00.4]} 3... c5 {[%clk 0:02:58.4]}
4. Nf3 {[%clk 0:02:58.6]} 4... cxd4 {[%clk 0:02:57.7]} 5. Nxd4 {[%clk
0:02:58.6]} 5... d5 {[%clk 0:02:58]} 6. cxd5 {[%clk 0:02:56.2]} 6... Nxd5 {[%clk
0:02:57.4]} 7. e4 {[%clk 0:02:55.2]} 7... Nxc3 {[%clk 0:02:57.4]} 8. bxc3 {[%clk
0:02:56]} 8... g6 {[%clk 0:02:54.3]} 9. Be3 {[%clk 0:02:55.3]} 9... Bg7 {[%clk
0:02:54.2]} 10. h4 {[%clk 0:02:54.7]} 10... h5 {[%clk 0:02:52.1]} 11. Be2 {[%clk
0:02:52.2]} 11... O-O {[%clk 0:02:41.2]} 12. g4 {[%clk 0:02:49.4]} 12... Bxg4
{[%clk 0:02:37.3]} 13. Bxg4 {[%clk 0:02:49]} 13... hxg4 {[%clk 0:02:37.2]} 14.
Qxg4 {[%clk 0:02:49.9]} 14... Qc8 {[%clk 0:02:27.8]} 15. Qxc8 {[%clk 0:02:42.7]}
15... Rxc8 {[%clk 0:02:26.5]} 16. Rc1 {[%clk 0:02:41.8]} 16... Nc6 {[%clk
0:02:25.4]} 17. Nb3 {[%clk 0:02:39.2]} 17... Ne5 {[%clk 0:02:24.2]} 18. Ke2
{[%clk 0:02:37.6]} 18... Rc4 {[%clk 0:02:16.7]} 19. f3 {[%clk 0:02:24.5]} 19...
Rac8 {[%clk 0:02:14.3]} 20. Bd4 {[%clk 0:02:21.3]} 20... Ra4 {[%clk 0:02:06.5]}
21. Rc2 {[%clk 0:02:15.8]} 21... Nc6 {[%clk 0:02:05.5]} 22. Bxg7 {[%clk
0:02:14]} 22... Kxg7 {[%clk 0:02:05]} 23. h5 {[%clk 0:02:14]} 23... Nb4 {[%clk
0:01:46.8]} 24. Rb2 {[%clk 0:02:06.8]} 24... Rxc3 {[%clk 0:01:41]} 25. Nd2
{[%clk 0:02:06.7]} 25... b5 {[%clk 0:01:31.7]} 26. hxg6 {[%clk 0:01:55.1]} 26...
fxg6 {[%clk 0:01:30.5]} 27. Rh3 {[%clk 0:01:53.8]} 27... Nc6 {[%clk 0:01:27.7]}
28. Nb3 {[%clk 0:01:50.5]} 28... Nd4+ {[%clk 0:01:24.3]} 29. Nxd4 {[%clk
0:01:50.4]} 29... Rxd4 {[%clk 0:01:24.2]} 30. Rg3 {[%clk 0:01:45.3]} 30... b4
{[%clk 0:01:21.7]} 31. Kf2 {[%clk 0:01:43.4]} 31... a5 {[%clk 0:01:17.7]} 32.
Kg2 {[%clk 0:01:40.5]} 32... a4 {[%clk 0:01:17]} 33. Kh3 {[%clk 0:01:40.5]}
33... a3 {[%clk 0:01:14]} 34. Rbg2 {[%clk 0:01:40.2]} 34... Rc6 {[%clk
0:01:08.6]} 35. Kh4 {[%clk 0:01:38.8]} 35... Rd1 {[%clk 0:01:04.2]} 36. e5
{[%clk 0:01:32.2]} 36... Kh6 {[%clk 0:00:59.2]} 37. Kg4 {[%clk 0:01:18.9]} 37...
Rc4+ {[%clk 0:00:39.7]} 38. f4 {[%clk 0:01:18.8]} 38... Rf1 {[%clk 0:00:36.1]}
39. Kh3 {[%clk 0:01:09.1]} 39... Rc3 {[%clk 0:00:34.9]} 40. Rxc3 {[%clk
0:00:55.3]} 40... bxc3 {[%clk 0:00:30.4]} 41. Rc2 {[%clk 0:00:55.7]} 41... Rf3+
{[%clk 0:00:29.4]} 42. Kg4 {[%clk 0:00:56.3]} 42... Rd3 {[%clk 0:00:29.2]} 43.
f5 {[%clk 0:00:56.4]} 43... Rd4+ {[%clk 0:00:26.7]} 44. Kf3 {[%clk 0:00:55.3]}
44... gxf5 {[%clk 0:00:26.8]} 45. Rxc3 {[%clk 0:00:55.2]} 45... Re4 {[%clk
0:00:26.4]} 46. Rxa3 {[%clk 0:00:51.3]} 46... Rxe5 {[%clk 0:00:25.6]} 47. Kf4
{[%clk 0:00:51.4]} 47... Rb5 {[%clk 0:00:25.1]} 48. Ra6+ {[%clk 0:00:50.9]}
48... Kg7 {[%clk 0:00:24]} 49. Kg5 {[%clk 0:00:50.4]} 49... Kf7 {[%clk
0:00:22.3]} 50. a4 {[%clk 0:00:48.7]} 50... Rd5 {[%clk 0:00:22.1]} 51. a5 {[%clk
0:00:47.1]} 51... Ke8 {[%clk 0:00:17]} 52. Ra7 {[%clk 0:00:43.2]} 52... Kf7
{[%clk 0:00:13.2]} 53. a6 {[%clk 0:00:43.1]} 53... Ra5 {[%clk 0:00:11.9]} 54.
Ra8 {[%clk 0:00:42.6]} 54... Ke6 {[%clk 0:00:11.3]} 55. a7 {[%clk 0:00:43.1]}
55... Ra1 {[%clk 0:00:09.6]} 56. Kf4 {[%clk 0:00:41.7]} 56... Ra4+ {[%clk
0:00:09.5]} 57. Ke3 {[%clk 0:00:42]} 57... Ke5 {[%clk 0:00:09.8]} 58. Kf3 {[%clk
0:00:40.1]} 58... Ra3+ {[%clk 0:00:09.9]} 59. Ke2 {[%clk 0:00:40.2]} 59... Kf4
{[%clk 0:00:09.4]} 60. Re8 {[%clk 0:00:35.1]} 60... Rxa7 {[%clk 0:00:07.3]} 61.
Rb8 {[%clk 0:00:32.7]} 61... e5 {[%clk 0:00:06.9]} 62. Rb4+ {[%clk 0:00:33.4]}
62... e4 {[%clk 0:00:07.1]} 63. Kf2 {[%clk 0:00:34.3]} 63... Ra2+ {[%clk
0:00:06.6]} 64. Kf1 {[%clk 0:00:35.2]} 64... Kf3 {[%clk 0:00:06.6]} 65. Rb3+
{[%clk 0:00:35.8]} 65... e3 {[%clk 0:00:06.4]} 66. Rb1 {[%clk 0:00:36.5]} 66...
f4 {[%clk 0:00:05]} 67. Ke1 {[%clk 0:00:36.3]} 67... Rh2 {[%clk 0:00:03.8]} 0-1

[Event "Late-Titled-Tuesday-Blitz-June-25-2024"]
[Site "Chess.com"]
[Date "2024.06.25"]
[Round "4"]
[White "Pedrada88"]
[Black "mac0504"]
[Result "0-1"]
[WhiteElo "2568"]
[BlackElo "2776"]
[TimeControl "180+1"]
[EndTime "14:38:17 PDT"]
[Termination "mac0504 won by resignation"]

1. Nf3 {[%clk 0:03:00.9]} 1... Nc6 {[%clk 0:02:58]} 2. d4 {[%clk 0:03:00.1]}
2... e6 {[%clk 0:02:56.7]} 3. g3 {[%clk 0:02:59.2]} 3... f5 {[%clk 0:02:55]} 4.
Bg2 {[%clk 0:02:59.6]} 4... Nf6 {[%clk 0:02:55.7]} 5. O-O {[%clk 0:03:00]} 5...
Be7 {[%clk 0:02:54.5]} 6. c4 {[%clk 0:03:00.5]} 6... O-O {[%clk 0:02:54.4]} 7.
Nc3 {[%clk 0:03:01.1]} 7... b6 {[%clk 0:02:49.5]} 8. d5 {[%clk 0:03:00]} 8...
exd5 {[%clk 0:02:44]} 9. cxd5 {[%clk 0:03:00.9]} 9... Nb4 {[%clk 0:02:37.6]} 10.
Qb3 {[%clk 0:02:52.4]} 10... Bd6 {[%clk 0:02:35.9]} 11. Nd4 {[%clk 0:02:44.4]}
11... Ng4 {[%clk 0:02:24.5]} 12. Ncb5 {[%clk 0:02:38.3]} 12... a5 {[%clk
0:02:08.4]} 13. Nxd6 {[%clk 0:02:36.9]} 13... cxd6 {[%clk 0:02:08.6]} 14. Bf4
{[%clk 0:02:37.8]} 14... Qf6 {[%clk 0:02:06]} 15. Rad1 {[%clk 0:02:33.9]} 15...
Ba6 {[%clk 0:02:05.5]} 16. a3 {[%clk 0:02:30.6]} 16... g5 {[%clk 0:02:06]} 17.
Bc1 {[%clk 0:02:22]} 17... Rac8 {[%clk 0:01:51.7]} 18. axb4 {[%clk 0:01:53.8]}
18... Rxc1 {[%clk 0:01:51.2]} 19. Rxc1 {[%clk 0:01:54.7]} 19... Qxd4 {[%clk
0:01:51.8]} 20. b5 {[%clk 0:01:54.8]} 20... a4 {[%clk 0:01:41.1]} 21. Qd1 {[%clk
0:01:02.7]} 21... Qxd1 {[%clk 0:01:37.6]} 22. Rfxd1 {[%clk 0:01:03.6]} 22...
Bxb5 {[%clk 0:01:38.2]} 23. e3 {[%clk 0:01:03]} 23... f4 {[%clk 0:01:30.9]} 24.
exf4 {[%clk 0:00:56]} 24... gxf4 {[%clk 0:01:31.2]} 25. Rd4 {[%clk 0:00:56.6]}
25... Ne5 {[%clk 0:01:25.5]} 26. Rxf4 {[%clk 0:00:54.3]} 26... Rxf4 {[%clk
0:01:23.5]} 27. gxf4 {[%clk 0:00:55.2]} 27... Nd3 {[%clk 0:01:22.1]} 28. Rc2
{[%clk 0:00:53.7]} 28... Nxf4 {[%clk 0:01:18.9]} 29. Bf1 {[%clk 0:00:46.8]}
29... Bxf1 {[%clk 0:01:17]} 30. Kxf1 {[%clk 0:00:47.7]} 30... Nxd5 {[%clk
0:01:16.3]} 31. Rd2 {[%clk 0:00:47.4]} 31... Nf4 {[%clk 0:00:12.1]} 32. Rxd6
{[%clk 0:00:46.6]} 32... b5 {[%clk 0:00:12.7]} 33. Rb6 {[%clk 0:00:35.7]} 33...
Kf7 {[%clk 0:00:13]} 34. Rxb5 {[%clk 0:00:35.4]} 34... Nd3 {[%clk 0:00:13.1]}
35. Ke2 {[%clk 0:00:30.7]} 35... Nc1+ {[%clk 0:00:13.5]} 36. Kd2 {[%clk
0:00:26.2]} 36... Nb3+ {[%clk 0:00:14.4]} 37. Kc3 {[%clk 0:00:25.1]} 37... Ke6
{[%clk 0:00:15.3]} 38. Rh5 {[%clk 0:00:20.6]} 38... d5 {[%clk 0:00:14.9]} 39.
Rxh7 {[%clk 0:00:19]} 39... Nc5 {[%clk 0:00:13.7]} 40. Rh4 {[%clk 0:00:17.9]}
40... Ne4+ {[%clk 0:00:13.8]} 41. Kc2 {[%clk 0:00:17.1]} 41... Ke5 {[%clk
0:00:13.6]} 42. f3 {[%clk 0:00:17]} 42... Nc5 {[%clk 0:00:13.6]} 43. Rb4 {[%clk
0:00:16.6]} 43... d4 {[%clk 0:00:13.5]} 44. h4 {[%clk 0:00:16.7]} 44... Ne6
{[%clk 0:00:03.5]} 45. Rxa4 {[%clk 0:00:15.1]} 45... Kf4 {[%clk 0:00:03.9]} 46.
Kd3 {[%clk 0:00:13.6]} 46... Nc5+ {[%clk 0:00:04.3]} 47. Kc4 {[%clk 0:00:13.4]}
47... Nxa4 {[%clk 0:00:05.2]} 48. b3 {[%clk 0:00:13.8]} 48... Ke3 {[%clk
0:00:02.5]} 49. h5 {[%clk 0:00:08.1]} 49... Nb6+ {[%clk 0:00:02.9]} 50. Kb5
{[%clk 0:00:07.6]} 50... Nd7 {[%clk 0:00:03.1]} 51. h6 {[%clk 0:00:07.1]} 51...
Nf6 {[%clk 0:00:03.1]} 52. Kc4 {[%clk 0:00:06.7]} 52... d3 {[%clk 0:00:03.5]}
53. Kc3 {[%clk 0:00:07]} 53... d2 {[%clk 0:00:04.2]} 54. Kc2 {[%clk 0:00:07.2]}
54... Ke2 {[%clk 0:00:04.9]} 55. Kc3 {[%clk 0:00:07.8]} 55... d1=Q {[%clk
0:00:05.3]} 56. b4 {[%clk 0:00:08.7]} 56... Qd3+ {[%clk 0:00:05.4]} 57. Kb2
{[%clk 0:00:09.2]} 57... Qxf3 {[%clk 0:00:05.6]} 58. Kc2 {[%clk 0:00:09.4]}
58... Qd3+ {[%clk 0:00:05.6]} 59. Kb2 {[%clk 0:00:09.9]} 59... Qc4 {[%clk
0:00:05.9]} 60. h7 {[%clk 0:00:09]} 60... Nxh7 {[%clk 0:00:05.3]} 61. Ka1 {[%clk
0:00:08.8]} 61... Qxb4 {[%clk 0:00:05.1]} 62. Ka2 {[%clk 0:00:09.7]} 62... Kd2
{[%clk 0:00:05.6]} 63. Ka1 {[%clk 0:00:10.2]} 63... Kc2 {[%clk 0:00:06.4]} 0-1

[Event "Late-Titled-Tuesday-Blitz-June-25-2024"]
[Site "Chess.com"]
[Date "2024.06.25"]
[Round "4"]
[White "TERMINATOR_PC"]
[Black "RandomNoob04"]
[Result "1/2-1/2"]
[WhiteElo "2594"]
[BlackElo "2803"]
[TimeControl "180+1"]
[EndTime "14:38:20 PDT"]
[Termination "Game drawn - insufficient material"]

1. d4 {[%clk 0:03:00.9]} 1... Nf6 {[%clk 0:03:00]} 2. Nc3 {[%clk 0:02:59.6]}
2... d5 {[%clk 0:03:00]} 3. Bf4 {[%clk 0:03:00.1]} 3... a6 {[%clk 0:03:00.5]} 4.
e3 {[%clk 0:03:00.1]} 4... c5 {[%clk 0:03:00.6]} 5. dxc5 {[%clk 0:02:59.9]} 5...
Qa5 {[%clk 0:03:00.6]} 6. Nf3 {[%clk 0:02:56.7]} 6... Qxc5 {[%clk 0:02:57.7]} 7.
Bd3 {[%clk 0:02:50.7]} 7... Nc6 {[%clk 0:02:57.6]} 8. O-O {[%clk 0:02:49.4]}
8... Bg4 {[%clk 0:02:58.2]} 9. Be2 {[%clk 0:02:45.2]} 9... e6 {[%clk 0:02:56.5]}
10. h3 {[%clk 0:02:45.8]} 10... Bh5 {[%clk 0:02:56.2]} 11. Ne5 {[%clk
0:02:42.6]} 11... Bxe2 {[%clk 0:02:54]} 12. Nxe2 {[%clk 0:02:39.9]} 12... Be7
{[%clk 0:02:48.7]} 13. Nd4 {[%clk 0:02:28.7]} 13... Nxd4 {[%clk 0:02:46.7]} 14.
exd4 {[%clk 0:02:25.9]} 14... Qb6 {[%clk 0:02:46.2]} 15. Qd3 {[%clk 0:02:16.5]}
15... O-O {[%clk 0:02:44.2]} 16. c3 {[%clk 0:02:13.8]} 16... Rac8 {[%clk
0:02:43.6]} 17. Qe2 {[%clk 0:02:10.3]} 17... Rfd8 {[%clk 0:02:42]} 18. Rae1
{[%clk 0:01:49.7]} 18... Nd7 {[%clk 0:02:35.5]} 19. Nd3 {[%clk 0:01:49.5]} 19...
Qb5 {[%clk 0:02:27.6]} 20. Qf3 {[%clk 0:01:44.9]} 20... Nf6 {[%clk 0:02:18]} 21.
Be5 {[%clk 0:01:42.6]} 21... Ne4 {[%clk 0:02:15]} 22. Re2 {[%clk 0:01:38.9]}
22... Bd6 {[%clk 0:02:05.6]} 23. Bxd6 {[%clk 0:01:36.8]} 23... Rxd6 {[%clk
0:02:02]} 24. Rfe1 {[%clk 0:01:37.7]} 24... h6 {[%clk 0:01:52.2]} 25. h4 {[%clk
0:01:37]} 25... Rb6 {[%clk 0:01:46.9]} 26. g4 {[%clk 0:01:35.9]} 26... Qa5
{[%clk 0:01:38.8]} 27. a3 {[%clk 0:01:28.6]} 27... Qb5 {[%clk 0:01:34.9]} 28.
Ne5 {[%clk 0:01:26.2]} 28... Rc7 {[%clk 0:01:25.4]} 29. Kg2 {[%clk 0:01:15.6]}
29... Qb3 {[%clk 0:01:23]} 30. Qf4 {[%clk 0:01:02.5]} 30... Re7 {[%clk
0:01:12.8]} 31. g5 {[%clk 0:00:59.6]} 31... hxg5 {[%clk 0:01:12.6]} 32. hxg5
{[%clk 0:01:00.5]} 32... f6 {[%clk 0:00:14.6]} 33. Ng6 {[%clk 0:00:52]} 33...
Re8 {[%clk 0:00:12.9]} 34. gxf6 {[%clk 0:00:51.4]} 34... Nxf6 {[%clk 0:00:13.8]}
35. Rh1 {[%clk 0:00:47.2]} 35... Qa2 {[%clk 0:00:06.2]} 36. Rh8+ {[%clk
0:00:40.9]} 36... Kf7 {[%clk 0:00:06.2]} 37. Qc7+ {[%clk 0:00:40.2]} 37... Kxg6
{[%clk 0:00:06.5]} 38. Rxe8 {[%clk 0:00:39.2]} 38... Rxb2 {[%clk 0:00:04.7]} 39.
Rxb2 {[%clk 0:00:28.4]} 39... Qxb2 {[%clk 0:00:05.6]} 40. Rxe6 {[%clk
0:00:22.6]} 40... Qxa3 {[%clk 0:00:06.2]} 41. Re7 {[%clk 0:00:18.6]} 41... Nh5
{[%clk 0:00:05.1]} 42. Qe5 {[%clk 0:00:10.6]} 42... Qxc3 {[%clk 0:00:02.1]} 43.
Re6+ {[%clk 0:00:08.8]} 43... Nf6 {[%clk 0:00:02.3]} 44. Qxd5 {[%clk 0:00:08.9]}
44... Qc8 {[%clk 0:00:01.4]} 45. Qe4+ {[%clk 0:00:07.5]} 45... Kf7 {[%clk
0:00:01.5]} 46. Re7+ {[%clk 0:00:07.8]} 46... Kf8 {[%clk 0:00:02.1]} 47. Qe6
{[%clk 0:00:08]} 47... Qxe6 {[%clk 0:00:01.6]} 48. Rxe6 {[%clk 0:00:08.9]} 48...
Kf7 {[%clk 0:00:01.4]} 49. Rb6 {[%clk 0:00:09]} 49... Nd7 {[%clk 0:00:02]} 50.
Rxb7 {[%clk 0:00:09.3]} 50... Ke6 {[%clk 0:00:02.9]} 51. Ra7 {[%clk 0:00:09.2]}
51... Nf6 {[%clk 0:00:03.3]} 52. Rxa6+ {[%clk 0:00:09.4]} 52... Kd5 {[%clk
0:00:04.2]} 53. Ra4 {[%clk 0:00:09]} 53... Ne4 {[%clk 0:00:04.3]} 54. Kf3 {[%clk
0:00:08.8]} 54... Nd6 {[%clk 0:00:03.6]} 55. Kf4 {[%clk 0:00:06.5]} 55... g6
{[%clk 0:00:03.8]} 56. Kg5 {[%clk 0:00:05.9]} 56... Ne4+ {[%clk 0:00:04.4]} 57.
Kxg6 {[%clk 0:00:04.3]} 57... Nxf2 {[%clk 0:00:05.3]} 58. Kf5 {[%clk 0:00:04]}
58... Nd3 {[%clk 0:00:06]} 59. Kg4 {[%clk 0:00:01.9]} 59... Nb2 {[%clk
0:00:06.4]} 60. Kf3 {[%clk 0:00:02.8]} 60... Nxa4 {[%clk 0:00:06.7]} 61. Ke3
{[%clk 0:00:03.7]} 61... Nb6 {[%clk 0:00:06.9]} 62. Kd3 {[%clk 0:00:04.6]} 62...
Nd7 {[%clk 0:00:07.7]} 63. Kc3 {[%clk 0:00:05.2]} 63... Nf8 {[%clk 0:00:08.5]}
64. Kd3 {[%clk 0:00:06.1]} 64... Ne6 {[%clk 0:00:09.4]} 65. Kc3 {[%clk
0:00:06.8]} 65... Nd8 {[%clk 0:00:10.3]} 66. Kd3 {[%clk 0:00:07.7]} 66... Nf7
{[%clk 0:00:10.1]} 67. Kc3 {[%clk 0:00:08.6]} 67... Nd6 {[%clk 0:00:11]} 68. Kd3
{[%clk 0:00:09.5]} 68... Nf5 {[%clk 0:00:11.9]} 69. Kc3 {[%clk 0:00:10.4]} 69...
Nxd4 {[%clk 0:00:12.8]} 1/2-1/2